fUST/lending_fUST_20240106
["ID","MTS","AMOUNT","RATE_DAILY","PERIOD"]
[310373681,1704520238183,-313.16664388,0.00020228,2]
[310373682,1704520238192,-177.074096,0.00020329,2]
[310373684,1704520238201,-166.03395552,0.0002159,2]
[310373686,1704520238211,-360.177092,0.0002159,2]
[310373688,1704520238221,-155.38874816,0.00021591,2]
[310373691,1704520238230,-20941.81269277,0.00021594,2]
[310373693,1704520238240,-9064.17,0.00021602,3]
[310373695,1704520238249,-155.45702832,0.00021611,2]
[310373697,1704520238263,-1193.04220828,0.00021611,2]
[310373699,1704520238272,-309.61298454,0.00021611,2]
[310373700,1704520238282,-155.00365162,0.00021611,2]
[310373702,1704520238291,-154.99981193,0.00021611,2]
[310373704,1704520238301,-942.0,0.00021611,2]
[310373706,1704520238310,-343.15093823,0.00021611,2]
[310373708,1704520238320,-221.01572586,0.00021611,2]
[310373710,1704520238329,-162.60202211,0.00021611,2]
[310373713,1704520238339,-172.87430556,0.00021611,2]
[310373714,1704520238349,-369.05872445,0.00021611,2]
[310373716,1704520238358,-2027.50790733,0.00021611,2]
[310373719,1704520238368,-293.73363054,0.00021611,2]
[310373721,1704520238377,-466.12469227,0.00021611,2]
[310373723,1704520238387,-154.97706399,0.00021611,2]
[310373725,1704520238396,-1196.07626328,0.00021611,2]
[310373727,1704520238405,-246.73297458,0.00021611,2]
[310373729,1704520238414,-154.84515485,0.00021611,2]
[310373731,1704520238423,-156.0291675,0.00021611,2]
[310373732,1704520238432,-7982.55859607,0.00021612,2]
[310373734,1704520238442,-200.0,0.00021613,2]
[310373736,1704520238451,-154.8915759,0.00021613,2]
[310373738,1704520238460,-5210.9786353,0.00021613,2]
[310373741,1704520238470,-1521.43996092,0.00021613,2]
[310373743,1704520238479,-178.51080942,0.00021613,2]
[310373744,1704520238488,-166.49187593,0.00021613,2]
[310373746,1704520238497,-607.22565239,0.00021613,2]
[310373748,1704520238509,-2076.65490248,0.00021613,2]
[310373751,1704520238519,-154.8915759,0.00021613,2]
[310373753,1704520238528,-205.57118185,0.00021613,2]
[310373754,1704520238537,-7385.3761122,0.00021918,2]
[310373756,1704520238547,-166.666666,0.00021918,2]
[310373758,1704520238556,-350.18766556,0.00022,4]
[310373760,1704520238565,-4912.75517152,0.00022,2]
[310373762,1704520238575,-156.72230709,0.00022,2]
[310373765,1704520238587,-3916.3398371,0.00022,2]
[310373767,1704520238596,-4332.92904906,0.00022308,5]
[310373769,1704520238605,-166.666666,0.00022431,2]
[310373771,1704520238614,-166.666666,0.00022944,2]
[310373772,1704520238623,-2091.44093784,0.00023,2]
[310373773,1704520238632,-9910.17247127,0.00023,2]
[310373774,1704520238641,-166.666666,0.00023456,2]
[310373775,1704520238650,-166.666666,0.00023969,2]
[310373776,1704520238660,-2291.27896623,0.00024,2]
[310373777,1704520238669,-313.16664386,0.00024049,2]
[310373778,1704520238678,-166.666666,0.00024482,2]
[310373779,1704520238687,-195.0933184,0.00024658,2]
[310373780,1704520238695,-524.84202363,0.00024998,2]
[310373781,1704520238705,-4707.01098899,0.00025,2]
[310373782,1704520238714,-2483.08597309,0.00025,2]
[310373783,1704520238723,-159.51633835,0.00025,2]
[310373784,1704520238733,-613.44573934,0.00025,2]
[310373785,1704520238746,-309.62844586,0.00025867,2]
[310373786,1704520238756,-525.41295756,0.00026,2]
[310373787,1704520238766,-1466.4431095,0.00026128,5]
[310373788,1704520238776,-300.0,0.00026645,2]
[310373789,1704520238786,-762.80188617,0.00026645,2]
[310373790,1704520238796,-762.80188617,0.00026645,2]
[310373791,1704520238806,-1057.27804807,0.0002741,2]
[310373792,1704520238815,-313.16664386,0.0002787,2]
[310373793,1704520238825,-155.5228318,0.00028,2]
[310373794,1704520238834,-2214.196009,0.00028534,2]
[310373795,1704520238844,-641.8639024,0.00028781,2]
[310373796,1704520238853,-312.6006807,0.000288,2]
[310373797,1704520238863,-3659.85423734,0.00029,2]
[310373798,1704520238872,-200.0,0.00029273,15]
[310373799,1704520238882,-348.0,0.00029273,15]
[310373800,1704520238891,-1321.80054486,0.000297,2]
[310373801,1704520238901,-1051.39700449,0.0003,4]
[310373802,1704520238910,-7031.06378172,0.0003,4]
[310373803,1704520238920,-193.0,0.0003,2]
[310373804,1704520238929,-2000.0,0.000308,2]
[310373806,1704520238938,-2000.0,0.0003081,2]
[310373807,1704520238948,-2000.0,0.0003082,2]
[310373808,1704520238957,-2000.0,0.0003083,2]
[310373809,1704520238967,-2000.0,0.0003084,2]
[310373810,1704520238976,-2000.0,0.0003085,2]
[310373811,1704520238985,-2000.0,0.0003086,2]
[310373812,1704520238995,-2000.0,0.0003087,2]
[310373813,1704520239004,-2000.0,0.0003088,2]
[310373814,1704520239016,-2000.0,0.0003089,2]
[310373816,1704520239027,-2000.0,0.000309,2]
[310373817,1704520239036,-2000.0,0.0003091,2]
[310373819,1704520239046,-2000.0,0.0003092,2]
[310373821,1704520239055,-2000.0,0.0003093,2]
[310373822,1704520239064,-2000.0,0.0003094,2]
[310373824,1704520239073,-2000.0,0.0003095,2]
[310373825,1704520239082,-2895.080571,0.0003096,2]
[310373826,1704520239092,-492.69358761,0.00030999,4]
[310373827,1704520239101,-618.2066392,0.00030999,4]
[310373828,1704520239110,-211.03896368,0.00030999,4]
[310373829,1704520239120,-103870.08264571,0.00031,4]
[310373830,1704520239129,-313.16664386,0.00031691,2]
[310373831,1704520239139,-150.81901718,0.00032964,120]
[310373832,1704520239151,-245.41474178,0.00033,4]
[310373833,1704520239161,-155.07727581,0.00033,4]
[310373834,1704520239171,-163.0,0.00033,2]
[310373835,1704520239181,-193.0,0.00033,2]
[310373836,1704520239191,-259.188,0.00033286,2]
[310373837,1704520239201,-160.0,0.00033286,2]
[310373838,1704520239210,-150.461,0.00033286,2]
[310373839,1704520239219,-150.0,0.00033286,2]
[310373840,1704520239228,-150.81901718,0.00033637,30]
[310373841,1704520239238,-1000.0,0.00034,7]
[310373842,1704520239248,-150.81901718,0.00034324,7]
[310373843,1704520239260,-11919.66758038,0.000345,2]
[310373844,1704520239271,-2553.161024,0.00034521,2]
[310373845,1704520239281,-2660.07799725,0.00035,4]
[310373846,1704520239290,-476.32081937,0.00035,4]
[310373847,1704520239300,-7798.15163609,0.00035,4]
[310373848,1704520239309,-1455.75460259,0.00035,14]
[310373849,1704520239319,-3541.79156626,0.00035,2]
[310373850,1704520239328,-4349.6256334,0.00035,4]
[310373851,1704520239337,-590.79111504,0.00035,2]
[310373852,1704520239348,-150.81901718,0.00035024,4]
[310373853,1704520239358,-8000.0,0.000351,30]
[310373854,1704520239368,-281.78382395,0.00035436,2]
[310373855,1704520239378,-452.0,0.00035452,2]
[310373856,1704520239388,-39926.56661117,0.000355,14]
[310373857,1704520239399,-313.16664386,0.00035512,2]
[310373858,1704520239409,-155.0,0.00035612,2]
[310373859,1704520239419,-295.97703225,0.00035616,3]
[310373860,1704520239430,-500.0,0.00035616,3]
[310373861,1704520239440,-500.0,0.00035616,3]
[310373862,1704520239449,-337.06367174,0.00035616,3]
[310373863,1704520239458,-500.0,0.00035616,3]
[310373865,1704520239468,-597.78004292,0.00035616,3]
[310373867,1704520239477,-500.0,0.00035616,3]
[310373868,1704520239487,-502.72305038,0.00035616,3]
[310373869,1704520239496,-510.97783528,0.00035616,3]
[310373870,1704520239505,-506.57414684,0.00035616,3]
[310373871,1704520239519,-501.80203555,0.00035616,2]
[310373872,1704520239528,-511.16309898,0.00035616,3]
[310373873,1704520239538,-500.0,0.00035616,3]
[310373874,1704520239548,-453.08820594,0.00035616,2]
[310373875,1704520239560,-212.85803751,0.00035616,2]
[310373876,1704520239569,-514.15754476,0.00035616,14]
[310373877,1704520239579,-442.01695768,0.00035616,3]
[310373878,1704520239588,-500.0,0.00035616,3]
[310373879,1704520239598,-500.0,0.00035616,3]
[310373880,1704520239609,-502.00846595,0.00035616,3]
[310373881,1704520239618,-500.0,0.00035616,3]
[310373882,1704520239627,-500.0,0.00035616,3]
[310373883,1704520239637,-525.48480124,0.00035616,3]
[310373884,1704520239645,-358.33337075,0.00035616,3]
[310373885,1704520239655,-500.0,0.00035616,3]
[310373886,1704520239664,-501.77406774,0.00035616,30]
[310373887,1704520239674,-502.2428841,0.00035616,3]
[310373888,1704520239683,-500.0,0.00035616,3]
[310373889,1704520239693,-500.0,0.00035616,3]
[310373890,1704520239703,-636.06,0.00035616,3]
[310373891,1704520239712,-517.60482023,0.00035616,3]
[310373892,1704520239721,-500.0,0.00035616,3]
[310373893,1704520239731,-500.0,0.00035616,3]
[310373894,1704520239741,-515.0206101,0.00035616,3]
[310373895,1704520239751,-500.0,0.00035616,3]
[310373896,1704520239762,-512.17019467,0.00035616,3]
[310373897,1704520239772,-500.0,0.00035616,3]
[310373898,1704520239782,-500.0,0.00035616,3]
[310373899,1704520239791,-500.08697044,0.00035616,3]
[310373900,1704520239800,-500.0,0.00035616,3]
[310373901,1704520239809,-500.0,0.00035616,3]
[310373902,1704520239819,-500.0,0.00035616,3]
[310373903,1704520239828,-1597.77,0.00035616,3]
[310373904,1704520239837,-500.0,0.00035616,3]
[310373905,1704520239846,-505.27064241,0.00035616,3]
[310373906,1704520239856,-504.7796127,0.00035616,3]
[310373907,1704520239866,-500.0,0.00035616,3]
[310373908,1704520239875,-511.097766,0.00035616,3]
[310373909,1704520239884,-500.0,0.00035616,3]
[310373910,1704520239893,-500.0,0.00035616,3]
[310373911,1704520239902,-500.0,0.00035616,3]
[310373912,1704520239910,-500.0,0.00035616,3]
[310373913,1704520239919,-500.0,0.00035616,3]
[310373914,1704520239928,-500.0,0.00035616,3]
[310373915,1704520239938,-505.29088612,0.00035616,3]
[310373916,1704520239947,-500.0,0.00035616,3]
[310373917,1704520239956,-500.0,0.00035616,3]
[310373918,1704520239965,-500.0,0.00035616,3]
[310373919,1704520239974,-500.0,0.00035616,3]
[310373920,1704520239983,-500.0,0.00035616,3]
[310373921,1704520239992,-8950.26,0.00035616,3]
[310373922,1704520240001,-500.0,0.00035616,3]
[310373923,1704520240011,-500.0,0.00035616,3]
[310373924,1704520240020,-500.0,0.00035616,3]
[310373925,1704520240029,-500.0,0.00035616,3]
[310373926,1704520240037,-1381.37,0.00035616,3]
[310373927,1704520240046,-500.0,0.00035616,3]
[310373928,1704520240055,-500.0,0.00035616,3]
[310373929,1704520240064,-500.0,0.00035616,3]
[310373930,1704520240073,-885.75,0.00035616,3]
[310373931,1704520240082,-500.0,0.00035616,3]
[310373932,1704520240092,-500.0,0.00035616,3]
[310373933,1704520240102,-500.0,0.00035616,3]
[310373934,1704520240111,-500.0,0.00035616,3]
[310373935,1704520240120,-500.0,0.00035616,3]
[310373936,1704520240130,-500.0,0.00035616,3]
[310373937,1704520240139,-533.63353953,0.00035616,3]
[310373938,1704520240148,-500.0,0.00035616,3]
[310373939,1704520240158,-500.0,0.00035616,3]
[310373940,1704520240167,-500.0,0.00035616,3]
[310373941,1704520240177,-500.0,0.00035616,3]
[310373942,1704520240187,-194.38429124,0.00035616,7]
[310373943,1704520240196,-500.0,0.00035616,3]
[310373944,1704520240205,-500.0,0.00035616,3]
[310373945,1704520240215,-500.0,0.00035616,3]
[310373946,1704520240224,-500.0,0.00035616,3]
[310373947,1704520240233,-500.0,0.00035616,3]
[310373948,1704520240243,-166.364766,0.00035616,120]
[310373949,1704520240252,-1735.14716401,0.00035645,2]
[310373950,1704520240262,-1824.98311827,0.00035645,2]
[310373951,1704520240271,-3730.14717653,0.00035645,2]
[310373952,1704520240280,-838.81832273,0.00035645,2]
[310373953,1704520240289,-456.40997446,0.00035645,2]
[310373954,1704520240299,-150.81901718,0.00035739,2]
[310373955,1704520240307,-2553.161024,0.00035798,2]
[310373956,1704520240316,-500.0,0.0003589,3]
[310373957,1704520240325,-506.30776035,0.0003589,3]
[310373958,1704520240335,-506.48336976,0.0003589,3]
[310373959,1704520240345,-507.78877084,0.0003589,3]
[310373960,1704520240354,-500.0,0.0003589,3]
[310373961,1704520240362,-507.07556743,0.0003589,3]
[310373962,1704520240371,-511.00435323,0.0003589,3]
[310373963,1704520240381,-500.0,0.0003589,3]
[310373965,1704520240391,-507.01927649,0.0003589,3]
[310373966,1704520240400,-505.81350492,0.0003589,3]
[310373967,1704520240410,-500.0,0.0003589,3]
[310373968,1704520240418,-510.00178322,0.0003589,3]
[310373969,1704520240428,-636.06,0.0003589,3]
[310373970,1704520240437,-509.44134385,0.0003589,3]
[310373972,1704520240446,-418.68360299,0.0003589,3]
[310373974,1704520240455,-505.08561459,0.0003589,3]
[310373975,1704520240464,-500.0,0.0003589,3]
[310373976,1704520240473,-529.41381062,0.0003589,3]
[310373977,1704520240482,-505.41923659,0.0003589,3]
[310373979,1704520240491,-527.67346704,0.0003589,3]
[310373980,1704520240500,-521.59429854,0.0003589,3]
[310373981,1704520240511,-1597.77,0.0003589,3]
[310373982,1704520240520,-509.48262239,0.0003589,3]
[310373983,1704520240530,-511.82509961,0.0003589,3]
[310373984,1704520240539,-514.17023555,0.0003589,3]
[310373985,1704520240548,-500.0,0.0003589,3]
[310373986,1704520240636,-550.81688216,0.0003589,3]
[310373987,1704520240646,-500.0,0.0003589,3]
[310373988,1704520240655,-500.0,0.0003589,3]
[310373989,1704520240665,-511.15113817,0.0003589,3]
[310373990,1704520240674,-229.52217026,0.0003589,3]
[310373991,1704520240683,-329.10985589,0.0003589,3]
[310373992,1704520240693,-508.31365666,0.0003589,3]
[310373993,1704520240702,-506.03265185,0.0003589,3]
[310373994,1704520240710,-500.0,0.0003589,3]
[310373995,1704520240720,-8950.26,0.0003589,3]
[310373996,1704520240729,-511.43644294,0.0003589,3]
[310373997,1704520240739,-500.0,0.0003589,3]
[310373998,1704520240749,-507.08090987,0.0003589,3]
[310373999,1704520240758,-506.09346854,0.0003589,3]
[310374000,1704520240768,-1381.37,0.0003589,3]
[310374001,1704520240777,-531.73227445,0.0003589,3]
[310374002,1704520240786,-507.20724551,0.0003589,3]
[310374003,1704520240796,-500.67464367,0.0003589,3]
[310374004,1704520240805,-885.75,0.0003589,3]
[310374005,1704520240815,-514.40614223,0.0003589,3]
[310374006,1704520240824,-517.62035945,0.0003589,3]
[310374007,1704520240833,-520.9424481,0.0003589,3]
[310374008,1704520240842,-525.09020232,0.0003589,3]
[310374009,1704520240852,-502.12330031,0.0003589,3]
[310374010,1704520240861,-500.0,0.0003589,3]
[310374011,1704520240870,-500.0,0.0003589,3]
[310374012,1704520240880,-500.0,0.0003589,3]
[310374013,1704520240889,-404.45932086,0.0003589,3]
[310374014,1704520240898,-500.0,0.0003589,3]
[310374015,1704520240908,-503.84331703,0.0003589,3]
[310374016,1704520240917,-518.86235743,0.0003589,3]
[310374017,1704520240926,-526.05114037,0.0003589,3]
[310374018,1704520240936,-500.0,0.0003589,3]
[310374019,1704520240946,-523.03150165,0.0003589,3]
[310374020,1704520240955,-164.102703,0.00035994,2]
[310374021,1704520240964,-166.957379,0.00035994,2]
[310374022,1704520240973,-169.413656,0.00035994,2]
[310374023,1704520240982,-987.200355,0.00035994,2]
[310374024,1704520240991,-193.0,0.00036,2]
[310374025,1704520241000,-277806.31552,0.00036163,3]
[310374026,1704520241012,-500.0,0.00036164,3]
[310374027,1704520241021,-500.0,0.00036164,3]
[310374028,1704520241030,-500.0,0.00036164,3]
[310374029,1704520241039,-500.0,0.00036164,3]
[310374030,1704520241048,-636.06,0.00036164,3]
[310374031,1704520241058,-500.0,0.00036164,3]
[310374032,1704520241067,-1597.77,0.00036164,3]
[310374033,1704520241076,-500.0,0.00036164,3]
[310374034,1704520241085,-500.0,0.00036164,3]
[310374035,1704520241095,-500.0,0.00036164,3]
[310374036,1704520241104,-500.0,0.00036164,3]
[310374037,1704520241114,-8950.26,0.00036164,3]
[310374038,1704520241123,-500.0,0.00036164,3]
[310374039,1704520241133,-1381.37,0.00036164,3]
[310374040,1704520241142,-885.75,0.00036164,3]
[310374041,1704520241151,-500.0,0.00036164,3]
[310374042,1704520241161,-500.0,0.00036164,3]
[310374043,1704520241170,-383.63532071,0.00036164,3]
[310374044,1704520241179,-500.0,0.00036164,3]
[310374045,1704520241189,-417.15089141,0.00036164,3]
[310374046,1704520241198,-211.15439469,0.00036169,7]
[310374047,1704520241208,-463.6549794,0.00036169,7]
[310374048,1704520241217,-159.0,0.00036286,2]
[310374049,1704520241227,-150.0,0.00036286,2]
[310374050,1704520241236,-150.0,0.00036286,2]
[310374051,1704520241245,-200.59,0.000364,4]
[310374052,1704520241254,-556.18706958,0.00036438,3]
[310374053,1704520241268,-500.0,0.00036438,3]
[310374054,1704520241277,-500.0,0.00036438,3]
[310374055,1704520241287,-223.46103181,0.00036438,3]
[310374056,1704520241296,-636.06,0.00036438,3]
[310374057,1704520241304,-500.0,0.00036438,3]
[310374058,1704520241314,-1597.77,0.00036438,3]
[310374059,1704520241323,-258.16133869,0.00036438,3]
[310374060,1704520241333,-500.0,0.00036438,3]
[310374061,1704520241342,-255.56943756,0.00036438,3]
[310374062,1704520241351,-500.0,0.00036438,3]
[310374063,1704520241361,-8950.26,0.00036438,3]
[310374064,1704520241371,-500.0,0.00036438,3]
[310374065,1704520241380,-1381.37,0.00036438,3]
[310374066,1704520241389,-885.75,0.00036438,3]
[310374067,1704520241398,-500.94262929,0.00036438,3]
[310374068,1704520241407,-500.0,0.00036438,3]
[310374069,1704520241416,-500.0,0.00036438,3]
[310374070,1704520241425,-169.413656,0.00036443,2]
[310374071,1704520241435,-987.200355,0.00036443,2]
[310374072,1704520241444,-4764.9234725,0.00036552,3]
[310374073,1704520241453,-301.08691961,0.00036552,2]
[310374074,1704520241462,-52191.98276022,0.00036612,2]
[310374075,1704520241477,-2368.08291423,0.00036612,2]
[310374076,1704520241489,-221439.93432555,0.00036612,2]
[310374077,1704520241498,-500.0,0.00036712,3]
[310374078,1704520241507,-422.70705592,0.00036712,3]
[310374079,1704520241519,-636.06,0.00036712,3]
[310374080,1704520241528,-500.0,0.00036712,3]
[310374081,1704520241537,-1597.77,0.00036712,3]
[310374082,1704520241548,-500.0,0.00036712,3]
[310374083,1704520241558,-500.0,0.00036712,3]
[310374084,1704520241567,-8950.26,0.00036712,3]
[310374085,1704520241577,-500.0,0.00036712,3]
[310374086,1704520241587,-1381.37,0.00036712,3]
[310374087,1704520241596,-885.75,0.00036712,3]
[310374088,1704520241606,-500.0,0.00036712,3]
[310374089,1704520241615,-472.67650371,0.00036712,3]
[310374090,1704520241625,-1988.83320582,0.00036804,2]
[310374091,1704520241634,-169.413656,0.00036893,2]
[310374092,1704520241643,-987.200355,0.00036893,2]
[310374093,1704520241652,-2715.57031202,0.00036897,4]
[310374094,1704520241661,-15528.05810637,0.000369,5]
[310374095,1704520241671,-502.971403,0.000369,7]
[310374096,1704520241680,-155.0,0.00036982,2]
[310374097,1704520241690,-500.0,0.00036986,3]
[310374098,1704520241698,-636.06,0.00036986,3]
[310374099,1704520241707,-500.0,0.00036986,3]
[310374100,1704520241717,-1597.77,0.00036986,3]
[310374101,1704520241726,-500.0,0.00036986,3]
[310374102,1704520241735,-500.0,0.00036986,3]
[310374103,1704520241745,-8950.26,0.00036986,3]
[310374104,1704520241754,-500.0,0.00036986,3]
[310374105,1704520241766,-1381.37,0.00036986,3]
[310374106,1704520241775,-885.75,0.00036986,3]
[310374107,1704520241785,-500.0,0.00036986,3]
[310374108,1704520241795,-2553.161024,0.00037075,2]
[310374109,1704520241804,-500.0,0.0003726,3]
[310374110,1704520241813,-636.06,0.0003726,3]
[310374111,1704520241823,-500.0,0.0003726,3]
[310374112,1704520241832,-1597.77,0.0003726,3]
[310374113,1704520241841,-500.0,0.0003726,3]
[310374114,1704520241851,-500.0,0.0003726,3]
[310374115,1704520241861,-8950.26,0.0003726,3]
[310374116,1704520241870,-500.0,0.0003726,3]
[310374117,1704520241880,-1381.37,0.0003726,3]
[310374118,1704520241889,-885.75,0.0003726,3]
[310374119,1704520241899,-500.0,0.0003726,3]
[310374120,1704520241908,-169.413656,0.00037343,2]
[310374121,1704520241918,-987.200355,0.00037343,2]
[310374122,1704520241927,-272.79400612,0.00037434,3]
[310374123,1704520241936,-511.72838361,0.00037534,3]
[310374124,1704520241945,-636.06,0.00037534,3]
[310374125,1704520241954,-500.0,0.00037534,3]
[310374126,1704520241963,-1597.77,0.00037534,3]
[310374127,1704520241973,-500.0,0.00037534,3]
[310374128,1704520241982,-8950.26,0.00037534,3]
[310374129,1704520241991,-500.0,0.00037534,3]
[310374130,1704520242000,-1381.37,0.00037534,3]
[310374131,1704520242014,-885.75,0.00037534,3]
[310374132,1704520242023,-500.0,0.00037534,3]
[310374133,1704520242032,-219.96908355,0.0003777,30]
[310374134,1704520242041,-169.413656,0.00037793,2]
[310374135,1704520242050,-987.200355,0.00037793,2]
[310374136,1704520242059,-151.0,0.00037797,2]
[310374137,1704520242068,-636.06,0.00037808,3]
[310374138,1704520242078,-500.0,0.00037808,3]
[310374139,1704520242088,-1597.77,0.00037808,3]
[310374140,1704520242097,-500.0,0.00037808,3]
[310374141,1704520242107,-8950.26,0.00037808,3]
[310374142,1704520242116,-500.0,0.00037808,3]
[310374143,1704520242126,-1381.37,0.00037808,3]
[310374144,1704520242135,-885.75,0.00037808,3]
[310374145,1704520242144,-500.0,0.00037808,3]
[310374146,1704520242153,-500.0,0.000379,7]
[310374147,1704520242163,-1570.12292109,0.00038,4]
[310374148,1704520242172,-244.12597039,0.00038,30]
[310374149,1704520242181,-636.06,0.00038082,3]
[310374150,1704520242191,-500.0,0.00038082,3]
[310374151,1704520242199,-1597.77,0.00038082,3]
[310374152,1704520242208,-500.0,0.00038082,3]
[310374153,1704520242218,-8950.26,0.00038082,3]
[310374154,1704520242227,-160.22510003,0.00038082,3]
[310374155,1704520242237,-1381.37,0.00038082,3]
[310374156,1704520242246,-885.75,0.00038082,3]
[310374157,1704520242255,-500.0,0.00038082,3]
[310374158,1704520242267,-155.0,0.00038352,2]
[310374159,1704520242276,-2553.161024,0.00038352,2]
[310374160,1704520242286,-500.0,0.00038356,2]
[310374161,1704520242295,-636.06,0.00038356,3]
[310374162,1704520242305,-500.0,0.00038356,3]
[310374163,1704520242314,-1597.77,0.00038356,3]
[310374164,1704520242323,-500.0,0.00038356,3]
[310374165,1704520242332,-8950.26,0.00038356,3]
[310374166,1704520242341,-1381.37,0.00038356,3]
[310374167,1704520242351,-885.75,0.00038356,3]
[310374168,1704520242360,-500.0,0.00038356,3]
[310374169,1704520242370,-636.06,0.0003863,3]
[310374170,1704520242380,-500.0,0.0003863,3]
[310374171,1704520242390,-1597.77,0.0003863,3]
[310374172,1704520242399,-500.0,0.0003863,3]
[310374173,1704520242409,-8950.26,0.0003863,3]
[310374174,1704520242418,-1381.37,0.0003863,3]
[310374175,1704520242427,-885.75,0.0003863,3]
[310374176,1704520242436,-500.0,0.0003863,3]
[310374177,1704520242445,-502.0,0.0003874,2]
[310374178,1704520242454,-12261.66449794,0.00038752,5]
[310374179,1704520242463,-175.24530589,0.000388,45]
[310374180,1704520242472,-500.0,0.000389,7]
[310374183,1704520242482,-636.06,0.00038904,3]
[310374186,1704520242491,-500.0,0.00038904,3]
[310374188,1704520242501,-1597.77,0.00038904,3]
[310374190,1704520242512,-500.0,0.00038904,3]
[310374191,1704520242521,-8950.26,0.00038904,3]
[310374192,1704520242530,-1381.37,0.00038904,3]
[310374193,1704520242538,-885.75,0.00038904,3]
[310374195,1704520242548,-500.0,0.00038904,3]
[310374197,1704520242557,-499.80429709,0.00038947,5]
[310374198,1704520242566,-154.81422293,0.00039,4]
[310374199,1704520242575,-7521.0,0.0003915,60]
[310374200,1704520242585,-283.0,0.0003915,60]
[310374201,1704520242594,-160.0,0.0003915,60]
[310374202,1704520242603,-7521.0,0.0003916,60]
[310374204,1704520242612,-283.0,0.0003916,60]
[310374205,1704520242621,-160.0,0.0003916,60]
[310374206,1704520242630,-7521.0,0.0003917,60]
[310374207,1704520242639,-283.0,0.0003917,60]
[310374208,1704520242648,-160.0,0.0003917,60]
[310374209,1704520242657,-636.06,0.00039178,3]
[310374210,1704520242666,-500.0,0.00039178,3]
[310374212,1704520242675,-1597.77,0.00039178,3]
[310374214,1704520242685,-500.0,0.00039178,3]
[310374216,1704520242694,-8950.26,0.00039178,3]
[310374218,1704520242703,-1381.37,0.00039178,3]
[310374220,1704520242712,-885.75,0.00039178,3]
[310374222,1704520242721,-500.0,0.00039178,3]
[310374224,1704520242731,-150.0,0.00039286,2]
[310374226,1704520242740,-636.06,0.00039452,3]
[310374228,1704520242750,-500.0,0.00039452,3]
[310374230,1704520242760,-1597.77,0.00039452,3]
[310374231,1704520242770,-500.0,0.00039452,3]
[310374232,1704520242779,-8950.26,0.00039452,3]
[310374233,1704520242788,-1381.37,0.00039452,3]
[310374234,1704520242798,-885.75,0.00039452,3]
[310374235,1704520242807,-500.0,0.00039452,3]
[310374236,1704520242816,-2553.161024,0.0003963,2]
[310374237,1704520242825,-151.0,0.00039705,2]
[310374238,1704520242835,-150.81901718,0.0003971,2]
[310374239,1704520242844,-156.48012502,0.0003971,2]
[310374240,1704520242968,-93.7105262,0.0003971,2]
[310374241,1704520242978,-155.0,0.00039722,2]
[310374242,1704520242987,-636.06,0.00039726,3]
[310374243,1704520242997,-500.0,0.00039726,3]
[310374244,1704520243006,-1597.77,0.00039726,3]
[310374245,1704520243017,-500.0,0.00039726,3]
[310374246,1704520243031,-8425.49902065,0.00039726,3]
[310374247,1704520243043,-524.76097935,0.00039726,3]
[310374248,1704520243052,-1381.37,0.00039726,3]
[310374249,1704520243061,-885.75,0.00039726,3]
[310374250,1704520243070,-500.0,0.00039726,3]
[310374251,1704520243079,-283.403252,0.000399,17]
[310374252,1704520243088,-500.0,0.000399,7]
[310374253,1704520243097,-1507.87048,0.000399,2]
[310374254,1704520243106,-4034.81482968,0.0003999,4]
[310374255,1704520243115,-340.35167661,0.00039992,7]